bitfinex/quotes_BTCUSD_20251214
["timestamp","ask_amount","ask_price","bid_price","bid_amount"]
[1765733830159,0.002,88796.0,88795.0,0.06996568]
[1765733830823,0.0215,88796.0,88795.0,0.0178]
[1765733831262,0.04912,88796.0,88795.0,0.0178]
[1765733835452,0.0215,88796.0,88795.0,0.0178]
[1765733837657,0.002,88796.0,88795.0,0.0178]
[1765733839214,0.002,88796.0,88795.0,0.0635]
[1765733840005,0.001,88796.0,88795.0,0.0635]
[1765733840385,0.002,88796.0,88795.0,0.0635]
[1765733840834,0.001,88796.0,88795.0,0.0635]
[1765733842472,0.001,88796.0,88795.0,0.0178]
[1765733847792,0.001,88796.0,88795.0,0.04852]
[1765733848620,0.001,88796.0,88795.0,0.03121]
[1765733849523,0.001,88796.0,88795.0,0.0178]
[1765733849524,0.01923,88796.0,88795.0,0.0178]
[1765733849740,0.22525312,88789.0,88788.0,0.003]
[1765733849954,0.24348312,88789.0,88788.0,0.003]
[1765733850173,0.38235312,88789.0,88788.0,0.003]
[1765733850595,0.26995312,88789.0,88788.0,0.003]
[1765733850807,0.38235312,88789.0,88788.0,0.003]
[1765733851016,0.38435312,88789.0,88788.0,0.003]
[1765733851232,0.67505312,88789.0,88788.0,0.003]
[1765733851884,0.67605312,88789.0,88788.0,0.003]
[1765733852115,0.67505312,88789.0,88788.0,0.003]
[1765733852335,0.67305312,88789.0,88788.0,0.003]
[1765733852546,0.68005312,88789.0,88788.0,0.004]
[1765733853016,0.67605312,88789.0,88788.0,0.003]
[1765733853452,0.67905312,88789.0,88788.0,0.004]
[1765733863143,0.56665312,88789.0,88788.0,0.004]
[1765733865910,0.67905312,88789.0,88788.0,0.004]
[1765733875860,0.56665312,88789.0,88788.0,0.004]
[1765733876071,0.67905312,88789.0,88788.0,0.004]
[1765733876279,0.72907151,88789.0,88788.0,0.004]
[1765733876911,0.83948777,88789.0,88788.0,0.004]
[1765733877113,0.83948777,88789.0,88740.0,0.29221443]
[1765733877114,0.67839435,88780.0,88745.0,0.0178]
[1765733877313,0.72282435,88780.0,88754.0,0.0178]
[1765733877523,0.74990435,88780.0,88745.0,0.0178]
[1765733877745,0.77412971,88780.0,88746.0,0.01126811]
[1765733877898,0.79192971,88780.0,88751.0,0.01126747]
[1765733878101,0.79192971,88780.0,88754.0,0.01126709]
[1765733878322,0.79492971,88780.0,88755.0,0.01126697]
[1765733878526,0.79192971,88780.0,88758.0,0.01126659]
[1765733878727,0.77170435,88780.0,88760.0,0.01126633]
[1765733879289,0.77170435,88780.0,88757.0,0.01126671]
[1765733879290,0.73610435,88780.0,88757.0,0.01126671]
[1765733879595,0.73610435,88780.0,88763.0,0.01126595]
[1765733879788,0.73610435,88780.0,88765.0,0.0112657]
[1765733879903,0.73610435,88780.0,88766.0,0.01126557]
[1765733880109,0.73210435,88780.0,88766.0,0.01126557]
[1765733880557,0.73210435,88780.0,88779.0,0.00111581]
[1765733880558,0.68708596,88780.0,88779.0,0.00111581]
[1765733880928,0.39638596,88780.0,88779.0,0.00111581]
[1765733881148,0.02763,88780.0,88779.0,0.00011581]
[1765733881336,0.003,88780.0,88779.0,0.04522581]
[1765733881754,0.002,88780.0,88779.0,0.04522581]
[1765733881959,0.23649508,88797.0,88779.0,0.04522581]
[1765733881960,0.01166062,88805.0,88802.0,0.011261]
[1765733882122,0.01166062,88805.0,88798.0,0.01126151]
[1765733882123,0.01778,88803.0,88798.0,0.01126151]
[1765733882320,0.01126113,88801.0,88798.0,0.01126151]
[1765733882754,0.011261,88802.0,88798.0,0.23649155]
[1765733882951,0.01126126,88800.0,88795.0,0.01126189]
[1765733883680,0.01778,88796.0,88795.0,0.01126189]
[1765733883867,0.01778,88796.0,88793.0,0.01126214]
[1765733884071,0.01126202,88794.0,88790.0,0.01126252]
[1765733884270,0.01126202,88794.0,88791.0,0.0112624]
[1765733884897,0.01778,88792.0,88788.0,0.01126278]
[1765733885387,0.02904227,88792.0,88791.0,0.001]
[1765733885624,0.01778,88792.0,88791.0,0.003]
[1765733886847,0.01778,88792.0,88789.0,0.25431568]
[1765733887082,0.01878,88792.0,88789.0,0.25431568]
[1765733887686,0.01778,88792.0,88789.0,0.02906265]
[1765733887885,0.01878,88792.0,88791.0,0.003]
[1765733888091,0.01878,88792.0,88791.0,0.001]
[1765733888290,0.01878,88792.0,88791.0,0.22624805]
[1765733888520,0.01778,88792.0,88791.0,0.22524805]
[1765733888874,0.001,88792.0,88791.0,0.23651045]
[1765733890123,0.01126202,88794.0,88791.0,0.23851045]
[1765733890321,0.001,88792.0,88791.0,0.23951045]
[1765733891025,0.01126189,88795.0,88792.0,0.01126227]
[1765733891374,0.001,88794.0,88792.0,0.23650542]
[1765733891822,0.15074164,88797.0,88792.0,0.23650542]
[1765733892020,0.01126176,88796.0,88793.0,0.01126214]
[1765733893210,0.001,88795.0,88793.0,0.01126214]
[1765733893626,0.01126176,88796.0,88793.0,0.01126214]
[1765733894072,0.01126176,88796.0,88793.0,0.01326214]
[1765733894221,0.15074164,88797.0,88794.0,0.01126202]
[1765733894792,0.01778,88795.0,88794.0,0.01126202]
[1765733894999,0.12366164,88797.0,88793.0,0.001]
[1765733895000,0.23649745,88796.0,88793.0,0.001]
[1765733895204,0.0079,88794.0,88793.0,0.001]
[1765733896273,0.0079,88794.0,88793.0,0.002]
[1765733896473,0.0079,88794.0,88793.0,0.001]
[1765733896672,0.0079,88794.0,88792.0,0.23650565]
[1765733896879,0.0079,88794.0,88793.0,0.001]
[1765733897835,0.0089,88794.0,88793.0,0.001]
[1765733898306,0.0079,88794.0,88793.0,0.001]
[1765733898739,0.0079,88794.0,88793.0,0.002]
[1765733901272,0.00781757,88794.0,88793.0,0.002]
[1765733901655,0.00781757,88794.0,88793.0,0.22724298]
[1765733906020,0.00781757,88794.0,88793.0,0.002]
[1765733908878,0.0094,88798.0,88796.0,0.22523537]
[1765733909128,0.23687392,88805.0,88797.0,0.01643]
[1765733909129,0.01166062,88805.0,88797.0,0.01643]
[1765733909337,0.23647849,88803.0,88799.0,0.01126138]
[1765733909998,0.01126227,88792.0,88789.0,0.02906265]
[1765733910219,0.12858,88799.0,88790.0,0.01126252]
[1765733910427,0.01126164,88797.0,88794.0,0.02906202]
[1765733910600,0.007,88798.0,88794.0,0.02906202]
[1765733910829,0.007,88798.0,88796.0,0.2252333]
[1765733912896,0.007,88798.0,88796.0,0.2262333]
[1765733916785,0.007,88798.0,88796.0,0.001]
[1765733917221,0.03349,88798.0,88796.0,0.001]
[1765733917427,0.01287375,88803.0,88796.0,0.01226176]
[1765733917428,0.00161287,88803.0,88796.0,0.01226176]
[1765733917777,0.00161287,88803.0,88796.0,0.24995459]
[1765733918056,0.00161287,88803.0,88801.0,0.22522079]
[1765733919782,0.00261287,88803.0,88801.0,0.001]
[1765733921143,0.00261287,88803.0,88802.0,0.22522015]
[1765733922035,0.00161287,88803.0,88802.0,0.22522015]
[1765733922240,0.00361287,88803.0,88802.0,0.22622015]
[1765733925251,0.00361287,88803.0,88802.0,0.001]
[1765733926901,0.04628287,88803.0,88802.0,0.001]
[1765733927100,0.01979287,88803.0,88802.0,0.001]
[1765733928345,0.002,88803.0,88802.0,0.04214]
[1765733929220,0.0004,88805.0,88803.0,0.22521761]
[1765733929426,0.0004,88805.0,88803.0,0.24992761]
[1765733929630,0.0004,88805.0,88803.0,0.22521761]
[1765733929820,0.0004,88805.0,88804.0,0.02471]
[1765733930273,0.0004,88805.0,88804.0,0.05894]
[1765733931116,0.0004,88805.0,88804.0,0.06094]
[1765733932978,0.0004,88805.0,88804.0,0.117145]
[1765733932979,0.0014,88805.0,88804.0,0.117145]
[1765733933518,0.0014,88805.0,88804.0,0.06094]
[1765733934165,0.0004,88805.0,88804.0,0.06094]
[1765733934564,0.0014,88805.0,88804.0,0.06294]
[1765733935027,0.0014,88805.0,88804.0,0.0854615]
[1765733936955,0.0014,88805.0,88804.0,0.17534]
[1765733937148,0.0014,88805.0,88804.0,0.1978615]
[1765733937772,0.0014,88805.0,88804.0,0.2046715]
[1765733940549,0.0014,88805.0,88804.0,0.0922715]
[1765733940758,0.0014,88805.0,88804.0,0.513036]
[1765733941165,0.0014,88805.0,88804.0,0.569231]
[1765733941570,0.0014,88805.0,88804.0,0.857931]
[1765733941571,0.0004,88805.0,88804.0,0.857931]
[1765733941972,0.0014,88805.0,88804.0,0.862931]
[1765733942803,0.0014,88805.0,88804.0,0.860931]
[1765733943183,0.0004,88805.0,88804.0,0.91094939]
[1765733943381,0.0004,88805.0,88804.0,0.90594939]
[1765733943585,0.0014,88805.0,88804.0,0.91094939]
[1765733943800,0.0014,88805.0,88804.0,0.91794939]
[1765733946045,0.0014,88805.0,88804.0,0.850131]
[1765733946413,0.0014,88805.0,88804.0,0.867931]
[1765733946613,0.0014,88805.0,88804.0,0.577231]
[1765733946792,0.0014,88805.0,88804.0,0.394885]
[1765733946967,0.0014,88805.0,88804.0,0.292875]
[1765733947366,0.0014,88805.0,88804.0,0.19015]
[1765733947568,0.0014,88805.0,88804.0,0.20553829]
[1765733947796,0.0014,88805.0,88804.0,0.37308729]
[1765733947989,0.0014,88805.0,88804.0,0.357699]
[1765733949629,0.0014,88805.0,88804.0,0.245299]
[1765733949841,0.0014,88805.0,88804.0,0.357699]
[1765733951921,0.0014,88805.0,88804.0,0.03661]
[1765733952127,0.0014,88805.0,88804.0,0.0298]
[1765733952776,0.0004,88805.0,88804.0,0.0248]
[1765733953003,0.0004,88805.0,88804.0,0.0208]
[1765733953163,0.0014,88805.0,88804.0,0.0208]
[1765733953367,0.0014,88805.0,88804.0,0.0238]
[1765733956595,0.0014,88805.0,88804.0,0.06487]
[1765733957554,0.0014,88805.0,88804.0,0.17727]
[1765733957959,0.001171,88805.0,88804.0,0.17727]
[1765733959176,0.001171,88805.0,88804.0,0.1997915]
[1765733959343,0.001171,88805.0,88804.0,0.21105047]
[1765733960674,0.001171,88805.0,88804.0,1.91083747]
[1765733960877,0.001171,88805.0,88804.0,2.00071597]
[1765733963767,0.001171,88805.0,88804.0,2.01792301]
[1765733965983,0.001171,88805.0,88804.0,1.22226901]
[1765733970573,0.001171,88805.0,88804.0,1.01696897]
[1765733980689,0.001171,88805.0,88804.0,1.01692897]
[1765733990392,0.001171,88805.0,88804.0,0.39847997]
[1765733990591,0.001171,88805.0,88804.0,0.03501897]
[1765733990795,0.001171,88805.0,88804.0,0.02376]
[1765733993470,0.001171,88805.0,88804.0,0.04781]
[1765733994067,0.001171,88805.0,88804.0,0.02376]
[1765733994484,0.001171,88805.0,88804.0,0.06306]
[1765734000659,0.001171,88805.0,88804.0,0.119265]
[1765734001450,0.001171,88805.0,88804.0,0.06306]
[1765734002972,0.001171,88805.0,88804.0,0.119265]
[1765734003394,0.001171,88805.0,88804.0,0.84224]
[1765734003802,0.001171,88805.0,88804.0,0.84968]
[1765734012749,0.001171,88805.0,88804.0,1.14038]
[1765734014817,0.001171,88805.0,88804.0,1.19039839]
[1765734015289,0.001171,88805.0,88804.0,1.18739839]
[1765734015494,0.001171,88805.0,88804.0,1.18439839]
[1765734015495,0.000171,88805.0,88804.0,1.18439839]
[1765734015704,0.001171,88805.0,88804.0,1.19539839]
[1765734016557,0.000171,88805.0,88804.0,1.19039839]
[1765734016976,0.001171,88805.0,88804.0,1.19739839]
[1765734017815,0.001171,88805.0,88804.0,1.19139839]
[1765734018223,0.001171,88805.0,88804.0,1.19739839]
[1765734018632,0.001171,88805.0,88804.0,1.2798098]
[1765734019675,0.00237526,88833.0,88804.0,1.2798098]
[1765734019882,0.00237526,88833.0,88812.0,2.41833]
[1765734020314,0.00237526,88833.0,88812.0,2.44284]
[1765734020526,0.00237526,88833.0,88812.0,2.44734594]
[1765734021156,0.00237526,88833.0,88812.0,1.96493094]
[1765734021383,0.00237526,88833.0,88812.0,1.96893094]
[1765734022156,0.0014,88813.0,88812.0,1.96893094]
[1765734022586,0.0004,88813.0,88812.0,1.96893094]
[1765734022719,0.0014,88813.0,88812.0,1.97393094]
[1765734034191,0.0014,88813.0,88812.0,1.74378594]
[1765734034541,0.0014,88813.0,88812.0,1.09295694]
[1765734036301,0.0014,88813.0,88812.0,0.98055694]
[1765734036508,0.0014,88813.0,88812.0,1.09295694]
[1765734036913,0.0014,88813.0,88812.0,1.14297533]
[1765734037352,0.00237526,88833.0,88812.0,1.14297533]
[1765734037353,0.00237526,88833.0,88818.0,2.62210297]
[1765734037557,0.00237526,88833.0,88818.0,2.78052238]
[1765734037969,0.00237526,88833.0,88818.0,2.67958297]
[1765734038199,0.00237526,88833.0,88818.0,2.68408823]
[1765734038608,0.0014,88819.0,88818.0,2.68908823]
[1765734039223,0.0014,88819.0,88818.0,2.69308823]
[1765734041006,0.0014,88819.0,88818.0,2.84148823]
[1765734042113,0.0014,88819.0,88818.0,2.85841723]
[1765734047842,0.00237526,88833.0,88832.0,2.51584409]
[1765734048091,0.00237526,88833.0,88832.0,2.66143409]
[1765734048252,0.00237526,88833.0,88832.0,2.68572409]
[1765734048610,0.00237526,88833.0,88832.0,2.69022909]
[1765734049743,0.00337526,88833.0,88832.0,2.69022909]
[1765734050160,0.00237526,88833.0,88832.0,2.69222909]
[1765734050565,0.00237526,88833.0,88832.0,2.69522909]
[1765734051524,0.00237526,88833.0,88832.0,2.74524748]
[1765734052142,0.00237526,88833.0,88832.0,2.76213834]
[1765734057762,0.00237526,88833.0,88832.0,1.39245895]
[1765734057973,0.00237526,88833.0,88832.0,1.36084595]
[1765734058387,0.00237526,88833.0,88832.0,1.06923795]
[1765734058598,0.00237526,88833.0,88832.0,0.29212909]
[1765734058807,0.00237526,88833.0,88832.0,0.25240909]
[1765734059010,0.00237526,88833.0,88832.0,0.24940909]
[1765734059217,0.00237526,88833.0,88832.0,0.24740909]
[1765734059424,0.00398813,88833.0,88832.0,0.24740909]
[1765734059629,0.00398813,88833.0,88832.0,0.24940909]
[1765734060250,0.00398813,88833.0,88832.0,0.24740909]
[1765734060658,0.00698813,88833.0,88832.0,0.24740909]
[1765734061516,0.00698813,88833.0,88832.0,0.24290409]
[1765734066185,0.00698813,88833.0,88832.0,0.01776]
[1765734066186,0.04768813,88833.0,88832.0,0.01776]
[1765734067433,0.04568813,88833.0,88832.0,0.01776]
[1765734067647,0.23641041,88829.0,88817.0,0.22518028]
[1765734067881,0.23641041,88829.0,88813.0,0.01125961]
[1765734067882,0.01125821,88824.0,88822.0,0.01776]
[1765734068116,0.01125821,88824.0,88813.0,0.01125961]
[1765734068117,0.01125973,88812.0,88806.0,0.119071]
[1765734068356,0.01125973,88812.0,88802.0,0.23647917]
[1765734068357,0.03502037,88807.0,88803.0,0.04506485]
[1765734068560,0.03502037,88807.0,88804.0,0.23647561]
[1765734068561,0.02376,88807.0,88804.0,0.23647561]
[1765734068786,0.02376,88807.0,88806.0,0.22521]
[1765734069881,0.02476,88807.0,88806.0,0.22521]
[1765734070103,0.02376,88807.0,88806.0,0.22521]
[1765734070322,0.02576,88807.0,88806.0,0.22521]
[1765734070533,0.02776,88807.0,88806.0,0.22521]
[1765734072257,0.02776,88807.0,88805.0,0.01776]
[1765734072473,0.01609,88806.0,88805.0,0.01776]
[1765734072901,0.0407,88806.0,88805.0,0.01776]
[1765734073787,0.0407,88806.0,88805.0,0.28190254]
[1765734073788,0.001,88806.0,88805.0,0.28190254]
[1765734075254,0.002,88806.0,88805.0,0.28190254]
[1765734075481,0.002,88806.0,88805.0,0.25818254]
[1765734075685,0.001,88806.0,88805.0,0.25818254]
[1765734077027,0.001,88806.0,88805.0,0.01776]
[1765734077324,0.0417,88806.0,88805.0,0.01776]
[1765734078090,0.001,88806.0,88805.0,0.24297254]
[1765734078292,0.02476,88806.0,88805.0,0.01776]
[1765734078512,0.04937,88806.0,88805.0,0.01776]
[1765734078735,0.011261,88802.0,88797.0,0.22523056]
[1765734079012,0.01126075,88804.0,88800.0,0.01776]
[1765734079240,0.03328,88806.0,88802.0,0.011261]
[1765734079460,0.00867,88806.0,88804.0,0.22521508]
[1765734079774,0.03328,88806.0,88804.0,0.22521508]
[1765734079915,0.0407,88805.0,88804.0,0.22521508]
[1765734080083,0.0407,88805.0,88803.0,0.01126088]
[1765734080281,0.01609,88804.0,88802.0,0.011261]
[1765734080482,0.01609,88803.0,88801.0,0.01126113]
[1765734081818,0.01709,88803.0,88801.0,0.01126113]
[1765734082027,0.01709,88803.0,88801.0,0.23648178]
[1765734083208,0.01709,88803.0,88801.0,0.01126113]
[1765734083413,0.01709,88803.0,88802.0,0.22522015]
[1765734083897,0.001,88803.0,88802.0,0.22522015]
[1765734084706,0.00767,88806.0,88805.0,0.22521254]
[1765734085083,0.00767,88806.0,88803.0,0.01126088]
[1765734085847,0.00867,88806.0,88804.0,0.22521508]
[1765734086285,0.01125897,88818.0,88814.0,0.01125948]
[1765734086491,0.01125897,88818.0,88812.0,0.01125973]
[1765734086492,0.24388633,88816.0,88812.0,0.01125973]
[1765734086691,0.24388425,88816.0,88812.0,0.01125973]
[1765734087392,0.24388425,88816.0,88811.0,0.01776]
[1765734087393,0.22519479,88812.0,88811.0,0.01776]
[1765734087712,0.26433479,88812.0,88811.0,0.01776]
[1765734088543,0.26633479,88812.0,88811.0,0.01776]
[1765734088943,0.26433479,88812.0,88811.0,0.01776]
[1765734089320,0.26933479,88812.0,88811.0,0.01776]
[1765734089889,0.23646174,88810.0,88808.0,0.01776]
[1765734090219,0.01646,88809.0,88808.0,0.01776]
[1765734090407,0.03914,88809.0,88808.0,0.01776]
[1765734092059,0.04781,88809.0,88808.0,0.01776]
[1765734092565,0.0112605,88806.0,88805.0,0.01776]
[1765734092780,0.23647149,88806.0,88805.0,0.01776]
[1765734092988,0.27561149,88806.0,88805.0,0.01776]
[1765734093582,0.0504005,88806.0,88805.0,0.01776]
[1765734094405,0.04114,88806.0,88805.0,0.01776]
[1765734094548,0.01846,88806.0,88805.0,0.01776]
[1765734095134,0.01946,88806.0,88805.0,0.01776]
[1765734096782,0.003,88806.0,88805.0,0.05758]
[1765734096997,0.003,88806.0,88805.0,0.18545799]
[1765734097327,0.003,88806.0,88805.0,0.16998]
[1765734099011,0.003,88806.0,88805.0,0.18545914]
[1765734099217,0.003,88806.0,88805.0,0.824743]
[1765734099426,0.003,88806.0,88805.0,0.809265]
[1765734099973,0.001,88806.0,88805.0,0.809265]
[1765734100969,0.02268,88828.0,88825.0,0.01125809]
[1765734101176,0.02268,88828.0,88826.0,0.2251593]
[1765734101593,0.0076,88829.0,88826.0,0.2251593]
[1765734101594,0.0076,88829.0,88828.0,0.22515423]
[1765734102005,0.04674,88829.0,88828.0,0.22515423]
[1765734102835,0.05174,88829.0,88828.0,0.22615423]
[1765734104100,0.05574,88829.0,88828.0,0.001]
[1765734105127,0.009,88829.0,88828.0,0.04082]
[1765734105858,0.00161287,88833.0,88830.0,0.01125745]
[1765734106716,0.00161287,88833.0,88831.0,0.26175662]
[1765734106896,0.00161287,88833.0,88832.0,0.01776]
[1765734107120,0.00161287,88833.0,88832.0,0.03307]
[1765734107354,0.00767,88844.0,88842.0,0.22511875]
[1765734108175,0.00767,88846.0,88845.0,0.22511114]
[1765734108377,0.01892505,88849.0,88845.0,0.22511114]
[1765734108806,0.00767,88849.0,88845.0,0.22511114]
[1765734109793,0.0034,88847.0,88845.0,0.22511114]
[1765734110020,0.01646,88846.0,88844.0,0.01125568]
[1765734110816,0.01807287,88846.0,88844.0,0.01125568]
[1765734111218,0.00274193,88845.0,88844.0,0.23636855]
[1765734112541,0.00574193,88845.0,88844.0,0.23636855]
[1765734114140,0.00774193,88845.0,88844.0,0.23636855]
[1765734115787,0.00774193,88845.0,88841.0,0.01125606]
[1765734115788,0.02420193,88845.0,88841.0,0.01125606]
[1765734115987,0.01646,88844.0,88842.0,0.22511875]
[1765734116217,0.005,88845.0,88844.0,0.22511368]
[1765734116630,0.00774193,88845.0,88844.0,0.22511368]
[1765734117009,0.00274193,88845.0,88844.0,0.22511368]
[1765734117401,0.00474193,88845.0,88844.0,0.22511368]
[1765734118214,0.00774193,88845.0,88844.0,0.22511368]
[1765734118393,0.00774193,88845.0,88844.0,0.37628368]
[1765734120686,0.00574193,88845.0,88844.0,0.37628368]
[1765734121026,0.00274193,88845.0,88844.0,0.26388368]
[1765734121462,0.00374193,88845.0,88844.0,0.26388368]
[1765734121664,0.00374193,88845.0,88844.0,0.37628368]
[1765734121872,0.00374193,88845.0,88844.0,0.26388368]
[1765734122066,0.00374193,88845.0,88844.0,0.37628368]
[1765734122272,0.00374193,88845.0,88844.0,0.26388368]
[1765734122855,0.00374193,88845.0,88844.0,0.37628368]
[1765734123673,0.00374193,88845.0,88844.0,0.26388368]
[1765734123893,0.00374193,88845.0,88844.0,0.37628368]
[1765734124606,0.00374193,88845.0,88844.0,0.26388368]
[1765734126437,0.00374193,88845.0,88844.0,0.32008868]
[1765734126659,0.00374193,88845.0,88844.0,0.26388368]
[1765734126852,0.00374193,88845.0,88844.0,0.32008868]
[1765734128142,0.00412812,88845.0,88844.0,0.32008868]
[1765734128851,0.00412812,88845.0,88844.0,0.26388368]
[1765734129296,0.00412812,88845.0,88844.0,0.32008868]
[1765734130489,0.00412812,88845.0,88844.0,0.26388368]
[1765734131059,0.00412812,88845.0,88844.0,0.37628368]
[1765734132100,0.00412812,88845.0,88844.0,2.37628368]
[1765734132466,0.00412812,88845.0,88844.0,1.74939268]
[1765734132694,0.00412812,88845.0,88844.0,1.01336324]
[1765734132895,0.00312812,88845.0,88844.0,1.01336324]
[1765734133132,0.00312812,88845.0,88844.0,1.01436324]
[1765734133424,0.00312812,88845.0,88844.0,0.86015924]
[1765734133586,0.00312812,88845.0,88844.0,0.55664824]
[1765734133789,0.00312812,88845.0,88844.0,0.54489824]
[1765734133995,0.00312812,88845.0,88844.0,0.56265824]
[1765734134407,0.00312812,88845.0,88844.0,0.34737824]
[1765734134724,0.00312812,88845.0,88844.0,0.34487368]
[1765734134938,0.00312812,88845.0,88844.0,0.38464368]
[1765734135139,0.00312812,88845.0,88844.0,0.49704368]
[1765734136015,0.00312812,88845.0,88844.0,0.49604368]
[1765734136422,0.00312812,88845.0,88844.0,0.22511368]
[1765734136423,0.00412812,88845.0,88844.0,0.22511368]
[1765734136691,0.00412812,88845.0,88844.0,0.24287368]
[1765734136899,0.00312812,88845.0,88844.0,0.24287368]
[1765734137297,0.00312812,88845.0,88844.0,0.24387368]
[1765734137524,0.00312812,88845.0,88844.0,0.24587368]
[1765734137701,0.00312812,88845.0,88844.0,0.24287368]
[1765734138010,0.00412812,88845.0,88844.0,0.22511368]
[1765734138212,0.00412812,88845.0,88844.0,0.25854368]
[1765734138573,0.00412812,88845.0,88844.0,0.28164368]
[1765734138796,0.00412812,88845.0,88844.0,0.39404368]
[1765734140366,0.00412812,88845.0,88844.0,0.37094368]
[1765734140749,0.00412812,88845.0,88844.0,0.39404368]
[1765734142520,0.00412812,88845.0,88844.0,0.52749868]
[1765734143155,0.00312812,88845.0,88844.0,0.52749868]
[1765734143362,0.00312812,88845.0,88844.0,0.52849868]
[1765734143562,0.00312812,88845.0,88844.0,0.52949868]
[1765734143790,0.00312812,88845.0,88844.0,0.52849868]
[1765734143985,0.00312812,88845.0,88844.0,0.52749868]
[1765734144209,0.00312812,88845.0,88844.0,0.53049868]
[1765734145448,0.00312812,88845.0,88844.0,0.53500335]
[1765734146124,0.00312812,88845.0,88844.0,0.51190335]
[1765734146331,0.00312812,88845.0,88844.0,0.53477335]
[1765734146961,0.00312812,88845.0,88844.0,0.53177335]
[1765734147366,0.00312812,88845.0,88844.0,0.53477335]
[1765734148705,0.00312812,88845.0,88844.0,0.25037835]
[1765734148910,0.00312812,88845.0,88844.0,0.23261835]
[1765734149202,0.00312812,88845.0,88844.0,0.28887835]
[1765734149604,0.00312812,88845.0,88844.0,0.39827835]
[1765734149980,0.00412812,88845.0,88844.0,0.39827835]
[1765734151247,0.00412812,88845.0,88844.0,0.35977835]
[1765734151488,0.00412812,88845.0,88844.0,0.24737835]
[1765734151950,0.00412812,88845.0,88844.0,0.24287368]
[1765734153371,0.00412812,88845.0,88844.0,0.22511368]
[1765734153678,0.00412812,88845.0,88844.0,0.24287368]
[1765734154410,0.00412812,88845.0,88844.0,0.22511368]
[1765734154782,0.00412812,88845.0,88844.0,0.24287368]
[1765734156149,0.00412812,88845.0,88844.0,0.26574368]
[1765734156357,0.00412812,88845.0,88844.0,0.28137368]
[1765734156968,0.00412812,88845.0,88844.0,0.33757868]
[1765734157373,0.00412812,88845.0,88844.0,0.28137368]
[1765734158599,0.00412812,88845.0,88844.0,0.24287368]
[1765734162641,0.02129099,88845.0,88844.0,0.01776]
[1765734162801,0.04458099,88845.0,88844.0,0.01776]
[1765734165989,0.00574099,88845.0,88844.0,0.01776]
[1765734167614,0.04458099,88845.0,88844.0,0.01776]
[1765734168864,0.04458099,88845.0,88830.0,0.24290806]
[1765734168865,0.01125745,88830.0,88822.0,0.22516944]
[1765734169065,0.15739624,88845.0,88821.0,0.01125859]
[1765734169066,0.02693,88823.0,88821.0,0.01125859]
[1765734169429,0.02693,88823.0,88822.0,0.01776]
[1765734169430,0.01344962,88823.0,88822.0,0.01776]
[1765734169835,0.02899962,88823.0,88822.0,0.01776]
[1765734170246,0.05228962,88823.0,88822.0,0.01776]
[1765734171253,0.05328962,88823.0,88822.0,0.01776]
[1765734171803,0.05528962,88823.0,88822.0,0.01776]
[1765734172017,0.05428962,88823.0,88822.0,0.01776]
[1765734172443,0.05628962,88823.0,88822.0,0.01776]
[1765734173072,0.05428962,88823.0,88822.0,0.01776]
[1765734173275,0.05628962,88823.0,88822.0,0.01776]
[1765734176087,0.05628962,88823.0,88816.0,0.01125923]
[1765734176088,0.22518778,88815.0,88812.0,0.01776]
[1765734176212,0.01503,88813.0,88812.0,0.01776]
[1765734176409,0.01679391,88813.0,88812.0,0.01776]
[1765734176631,0.04066391,88813.0,88812.0,0.01776]
[1765734177444,0.05192352,88813.0,88809.0,0.01126012]
[1765734177646,0.02387,88812.0,88809.0,0.01126012]
[1765734177852,0.01503,88810.0,88809.0,0.01126012]
[1765734178987,0.01503,88810.0,88809.0,0.01226012]
[1765734182064,0.0389,88810.0,88809.0,0.001]
[1765734183114,0.04057218,88810.0,88809.0,0.001]
[1765734183321,0.01670218,88810.0,88808.0,0.24296388]
[1765734183498,0.00763,88811.0,88810.0,0.22519986]
[1765734183696,0.23643819,88819.0,88810.0,0.22519986]
[1765734183697,0.22515467,88828.0,88816.0,0.23644329]
[1765734184069,0.01125771,88828.0,88825.0,0.01125809]
[1765734184270,0.01287058,88828.0,88823.0,0.01125834]
[1765734184480,0.01503,88825.0,88823.0,0.23642304]
[1765734184676,0.23802674,88828.0,88823.0,0.23642304]
[1765734184677,0.00216132,88826.0,88824.0,0.22516216]
[1765734184890,0.00161287,88826.0,88823.0,0.01125834]
[1765734185119,0.02548287,88826.0,88823.0,0.01125834]
[1765734185858,0.00161287,88826.0,88823.0,0.01125834]
[1765734186074,0.03512809,88825.0,88822.0,0.01125847]
[1765734186275,0.02387,88825.0,88823.0,0.2251669]
[1765734186710,0.02587,88825.0,88823.0,0.2251669]
[1765734187148,0.02387,88825.0,88823.0,0.2251669]
[1765734187407,0.002,88825.0,88824.0,0.22516223]
[1765734187600,0.00461287,88826.0,88824.0,0.22516223]
[1765734187601,0.00161287,88826.0,88824.0,0.22516223]
[1765734187756,0.00161287,88826.0,88823.0,0.23642524]
[1765734187957,0.005,88825.0,88823.0,0.23642524]
[1765734188360,0.003,88825.0,88823.0,0.23642524]
[1765734189099,0.00161287,88826.0,88823.0,0.23642524]
[1765734189555,0.00561287,88826.0,88823.0,0.23642524]
[1765734189932,0.00161287,88826.0,88823.0,0.23642524]
[1765734190172,0.02548287,88826.0,88825.0,0.22516183]
[1765734190373,0.00461287,88826.0,88825.0,0.22516183]
[1765734190584,0.00677419,88826.0,88825.0,0.22516183]
[1765734190796,0.00877419,88826.0,88825.0,0.22516183]
[1765734191007,0.02180419,88826.0,88823.0,0.23642524]
[1765734191180,0.01964287,88826.0,88823.0,0.23642524]
[1765734191389,0.02264287,88826.0,88823.0,0.23642524]
[1765734191526,0.04651287,88826.0,88823.0,0.23642524]
[1765734191728,0.02264287,88826.0,88825.0,0.22516183]
[1765734192344,0.01964287,88826.0,88825.0,0.22516183]
[1765734192793,0.02364287,88826.0,88825.0,0.22516183]
[1765734194025,0.04751287,88826.0,88825.0,0.22516183]
[1765734195071,0.04751287,88826.0,88823.0,0.23642524]
[1765734195927,0.04051287,88826.0,88823.0,0.23642524]
[1765734196167,0.04251287,88826.0,88823.0,0.23642524]
[1765734196364,0.04551287,88826.0,88823.0,0.23642524]
[1765734196503,0.00210018,88824.0,88823.0,0.23642524]
[1765734197927,0.22516944,88822.0,88821.0,0.01776]
[1765734198281,0.24019944,88822.0,88821.0,0.01776]
[1765734198474,0.26406944,88822.0,88821.0,0.01776]